bitfinex/quotes_SOLUSD_20250912
["timestamp","ask_amount","ask_price","bid_price","bid_amount"]
[1757719045506,34.95,240.38,240.32,0.12]
[1757719046016,0.03,240.38,240.32,0.12]
[1757719046197,34.92,240.37,240.32,0.12]
[1757719046893,0.03,240.38,240.32,0.12]
[1757719047088,34.9,240.37,240.32,0.12]
[1757719048397,0.03,240.38,240.32,0.12]
[1757719053889,0.03,240.38,240.37,26.0]
[1757719054290,0.03,240.38,240.37,26.41602529]
[1757719054515,0.03,240.38,240.37,40.0116193]
[1757719056511,0.03,240.38,240.37,41.67485555]
[1757719065185,0.03,240.38,240.37,76.87485555]
[1757719066911,0.03,240.38,240.37,76.45883026]
[1757719067092,0.03,240.38,240.37,27.66323625]
[1757719070113,0.03,240.38,240.37,41.67485555]
[1757719071517,0.03,240.38,240.37,41.25883026]
[1757719074591,0.03,240.38,240.37,76.89883026]
[1757719076112,0.03,240.38,240.37,101.68853428]
[1757719076312,0.03,240.4,240.39,33.59559401]
[1757719076504,0.03,240.4,240.39,74.18526342]
[1757719078909,0.03,240.42,240.41,33.59559401]
[1757719079109,0.03,240.42,240.41,69.35559401]
[1757719079299,0.03,240.42,240.41,74.14522881]
[1757719079691,0.03,240.42,240.41,75.80784286]
[1757719081195,0.03,240.42,240.41,75.39188679]
[1757719083910,0.03,240.42,240.41,75.80784286]
[1757719086606,0.03,240.42,240.41,88.28784286]
[1757719086809,0.03,240.42,240.41,75.39188679]
[1757719087331,0.03,240.42,240.41,75.80784286]
[1757719088799,0.03,240.42,240.41,40.04784286]
[1757719089000,0.03,240.42,240.41,75.15188679]
[1757719089307,0.03,240.42,240.41,77.05188679]
[1757719089500,0.03,240.42,240.41,77.46784286]
[1757719096913,0.03,240.42,240.41,89.94784286]
[1757719097241,0.01,240.42,240.41,89.53188679]
[1757719100935,0.03,240.45,240.42,33.189846]
[1757719101139,0.10588556,240.46,240.45,33.59559401]
[1757719101342,0.10588556,240.46,240.45,68.81559401]
[1757719101643,0.76588556,240.46,240.45,70.47786259]
[1757719102043,0.76588556,240.46,240.45,74.85154132]
[1757719102541,0.76588556,240.46,240.45,19.63154132]
[1757719102848,0.76588556,240.46,240.45,54.79154132]
[1757719103059,0.76588556,240.46,240.45,0.94226858]
[1757719103644,0.76588556,240.46,240.45,26.94226858]
[1757719104146,0.76588556,240.46,240.45,31.31594731]
[1757719105029,0.76588556,240.46,240.45,44.91154132]
[1757719107244,0.79588556,240.46,240.45,44.91154132]
[1757719115552,0.69,240.46,240.45,5.31594731]
[1757719116828,0.69,240.46,240.45,30.37367873]
[1757719117042,0.69,240.46,240.43,1.66302879]
[1757719117236,0.7,240.45,240.44,26.0]
[1757719117555,0.80588556,240.45,240.44,26.0]
[1757719117859,0.80588556,240.45,240.43,27.66302879]
[1757719118158,0.7,240.44,240.43,76.1986228]
[1757719118338,0.7,240.44,240.43,80.57230153]
[1757719119238,0.03,240.46,240.44,13.59559401]
[1757719119439,0.03,240.46,240.43,54.57230153]
[1757719119440,0.03,240.46,240.45,52.88927274]
[1757719119629,0.03,240.46,240.45,39.29367873]
[1757719119834,0.03,240.46,240.45,4.37367873]
[1757719120152,0.73,240.46,240.45,4.37367873]
[1757719121062,0.03,240.46,240.45,4.26779317]
[1757719121759,0.73,240.46,240.45,4.26779317]
[1757719122150,0.03,240.46,240.45,17.86338718]
[1757719122650,0.03,240.46,240.45,18.57338718]
[1757719122856,0.03,240.46,240.45,17.86338718]
[1757719124048,0.03,240.46,240.45,19.52613945]
[1757719124843,0.03,240.46,240.45,19.64613945]
[1757719125049,0.03,240.46,240.45,23.51259958]
[1757719125251,0.01,240.46,240.45,23.51259958]
[1757719125764,0.01,240.46,240.45,43.51259958]
[1757719130869,0.01,240.46,240.45,45.41259958]
[1757719134551,0.01,240.46,240.45,44.28671271]
[1757719135161,0.07887653,240.47,240.46,13.59559401]
[1757719135366,0.07887653,240.47,240.46,48.17559401]
[1757719135856,0.07887653,240.47,240.46,49.83793167]
[1757719136469,0.07887653,240.47,240.46,49.79793167]
[1757719136655,0.73887653,240.47,240.46,49.79793167]
[1757719136857,0.07887653,240.47,240.46,49.79793167]
[1757719137064,0.07887653,240.47,240.46,54.16396311]
[1757719138782,0.73887653,240.47,240.46,54.16396311]
[1757719138976,0.07887653,240.47,240.46,54.16396311]
[1757719140978,0.07887653,240.47,240.46,54.82396311]
[1757719141193,0.07887653,240.47,240.46,57.98040595]
[1757719142681,0.07887653,240.47,240.46,81.23039424]
[1757719144184,1e-08,240.47,240.46,74.12378954]
[1757719144384,0.03,240.49,240.48,39.59559401]
[1757719144558,0.03,240.49,240.48,82.98219871]
[1757719144760,0.03,240.49,240.48,83.64219871]
[1757719145177,0.02255777,240.51,240.48,85.30412197]
[1757719145382,0.02255777,240.51,240.5,13.59559401]
[1757719145684,0.02255777,240.51,240.5,55.02219871]
[1757719145982,0.02255777,240.51,240.5,57.34412197]
[1757719146364,0.02255777,240.51,240.5,56.68412197]
[1757719147490,0.68255777,240.51,240.5,56.66412197]
[1757719149285,0.02255777,240.51,240.5,56.66412197]
[1757719149896,0.02255777,240.51,240.5,57.32412197]
[1757719151486,0.02255777,240.51,240.5,56.66412197]
[1757719152258,0.02255777,240.51,240.5,57.32412197]
[1757719157782,0.02255777,240.51,240.5,77.32412197]
[1757719158572,0.02255777,240.51,240.5,57.32412197]
[1757719160593,0.00255777,240.51,240.5,57.32412197]
[1757719161476,0.00255777,240.51,240.5,57.44412197]
[1757719161881,0.00255777,240.51,240.5,69.92412197]
[1757719162086,0.00255777,240.51,240.5,57.44412197]
[1757719166296,0.00255777,240.51,240.5,58.94412197]
[1757719167002,0.00255777,240.51,240.5,58.92412197]
[1757719168104,0.00255777,240.51,240.5,25.04412197]
[1757719168309,0.00255777,240.51,240.5,58.88412197]
[1757719170690,0.01243312,240.54,240.53,39.59559401]
[1757719170890,0.01243312,240.54,240.53,77.78162545]
[1757719172208,0.01243312,240.54,240.53,79.44334159]
[1757719172422,0.01243312,240.54,240.53,82.78667814]
[1757719172718,0.01243312,240.54,240.53,82.74667814]
[1757719172922,0.67243312,240.54,240.53,82.74667814]
[1757719173296,0.67243312,240.54,240.53,48.96667814]
[1757719173498,0.67243312,240.54,240.53,82.72667814]
[1757719173810,0.01243312,240.54,240.53,82.72667814]
[1757719175322,0.01243312,240.54,240.53,83.37667814]
[1757719176006,0.01243312,240.54,240.53,86.1172514]
[1757719177011,0.01243312,240.54,240.53,85.4672514]
[1757719177211,0.66,240.63,240.61,26.0]
[1757719177398,0.2,240.67,240.65,26.0]
[1757719177596,0.2,240.67,240.66,33.7]
[1757719177998,0.86,240.67,240.66,46.09030209]
[1757719178193,0.86,240.67,240.66,12.39030209]
[1757719178400,0.86,240.67,240.64,26.0]
[1757719178601,0.2,240.67,240.64,25.28]
[1757719179890,0.2,240.67,240.6,12.39030209]
[1757719180094,0.2,240.67,240.61,33.66]
[1757719180495,0.2,240.67,240.64,26.0]
[1757719181610,0.2,240.67,240.57,26.0]
[1757719181817,0.2,240.67,240.58,12.46442445]
[1757719182121,0.2,240.67,240.53,3.34333655]
[1757719182315,0.2,240.67,240.55,26.0]
[1757719182502,0.2,240.67,240.52,46.10753247]
[1757719182710,0.2,240.67,240.55,26.0]
[1757719183319,0.2,240.67,240.55,59.62]
[1757719187564,0.2,240.67,240.55,60.32]
[1757719187704,0.2,240.67,240.56,0.7]
[1757719188339,0.2,240.67,240.59,26.0]
[1757719188542,0.2,240.67,240.59,60.28]
[1757719189917,0.2,240.67,240.59,26.0]
[1757719190242,0.2,240.67,240.59,59.56]
[1757719191229,0.2,240.67,240.58,26.0]
[1757719191433,0.2,240.67,240.58,59.56]
[1757719192142,0.2,240.67,240.58,60.26]
[1757719193313,0.2,240.67,240.58,0.7]
[1757719193544,0.2,240.67,240.55,4.36603144]
[1757719193922,0.2,240.67,240.59,26.0]
[1757719194326,0.2,240.67,240.56,19.34]
[1757719194626,0.2,240.67,240.59,26.0]
[1757719196338,0.2,240.67,240.58,26.0]
[1757719197440,0.2,240.67,240.58,26.68]
[1757719199424,0.2,240.67,240.59,0.68]
[1757719206363,0.2,240.67,240.63,26.0]
[1757719206563,0.03,240.7,240.64,0.68]
[1757719207250,0.03,240.7,240.64,26.68]
[1757719207451,0.03,240.7,240.65,0.68]
[1757719208638,0.03,240.7,240.65,26.68]
[1757719209146,0.03,240.7,240.66,13.14235331]
[1757719209542,0.03,240.7,240.67,0.68]
[1757719210137,0.03,240.7,240.68,12.46183563]
[1757719210546,0.03,240.7,240.69,0.68]
[1757719212586,0.03,240.7,240.69,34.08]
[1757719213055,0.03,240.7,240.69,0.68]
[1757719213366,0.03,240.7,240.69,34.08]
[1757719213948,0.03,240.7,240.69,0.68]
[1757719214163,0.03,240.7,240.69,13.1408004]
[1757719220764,0.03,240.7,240.69,46.5408004]
[1757719222064,0.03,240.7,240.69,13.1408004]
[1757719222262,0.03,240.7,240.69,46.5408004]
[1757719222768,13.36559401,240.85,240.72,26.0]
[1757719222967,13.36559401,240.85,240.73,33.4]
[1757719223268,46.0,240.88,240.76,26.0]
[1757719223453,3.02821735,240.87,240.76,26.0]
[1757719224064,3.02821735,240.87,240.74,38.45769574]
[1757719224065,20.0,240.86,240.74,38.45769574]
[1757719224247,22.22592493,240.86,240.76,26.0]
[1757719224656,13.59559401,240.85,240.76,26.0]
[1757719225081,15.82151894,240.85,240.76,26.0]
[1757719226455,13.59559401,240.85,240.76,26.0]
[1757719227973,33.59559401,240.86,240.76,26.0]
[1757719229244,13.59559401,240.85,240.72,0.69]
[1757719229450,13.59559401,240.85,240.77,12.45769574]
[1757719229644,13.59559401,240.85,240.74,59.38]
[1757719230062,13.59559401,240.85,240.75,12.45873046]
[1757719230465,13.59559401,240.85,240.74,26.0]
[1757719230866,13.59559401,240.85,240.75,12.45924788]
[1757719231571,13.59559401,240.86,240.75,12.45924788]
[1757719231769,33.59559401,240.86,240.75,12.45924788]
[1757719232071,35.82151894,240.86,240.75,12.45924788]
[1757719233450,33.59559401,240.86,240.74,26.0]
[1757719233775,13.59559401,240.87,240.75,12.45924788]
[1757719234572,13.59559401,240.85,240.75,12.45924788]
[1757719234768,13.59559401,240.86,240.75,12.45924788]
[1757719235077,33.59559401,240.86,240.75,12.45924788]
[1757719235271,35.82151894,240.86,240.75,12.45924788]
[1757719235654,35.82151894,240.86,240.75,12.57924788]
[1757719235850,0.03,240.86,240.75,12.57924788]
[1757719236055,13.59559401,240.85,240.75,12.57924788]
[1757719236760,13.62559401,240.86,240.75,12.57924788]
[1757719237170,0.03,240.86,240.75,12.57924788]
[1757719237864,13.59559401,240.85,240.75,12.57924788]
[1757719238669,13.59559401,240.85,240.75,13.26924788]
[1757719239464,15.82151894,240.85,240.75,13.26924788]
[1757719239881,13.59559401,240.85,240.75,13.26924788]
[1757719242983,13.59559401,240.79,240.75,0.12]
[1757719244258,13.59559401,240.77,240.75,0.12]
[1757719246464,2.22592493,240.79,240.75,0.12]
[1757719247272,13.59559401,240.8,240.75,0.12]
[1757719247477,2.22592493,240.79,240.75,0.12]
[1757719248474,13.59559401,240.78,240.75,0.12]
[1757719252590,22.22592493,240.77,240.75,0.12]
[1757719252885,13.59559401,240.76,240.75,0.12]
[1757719254669,16.63500314,240.76,240.75,0.12]
[1757719255466,18.86092807,240.76,240.75,0.12]
[1757719255763,52.20092807,240.76,240.75,0.12]
[1757719256379,53.45109271,240.76,240.75,0.12]
[1757719257189,53.44876622,240.76,240.75,0.12]
[1757719257487,57.60228009,240.76,240.75,0.12]
[1757719257671,53.44876622,240.76,240.75,0.12]
[1757719259285,57.60228009,240.76,240.75,0.12]
[1757719259671,69.91936291,240.76,240.75,0.12]
[1757719261574,62.28975947,240.76,240.75,0.12]
[1757719261791,65.76584904,240.76,240.75,0.12]
[1757719262381,65.76452921,240.76,240.75,0.12]
[1757719262999,69.91804308,240.76,240.75,0.12]
[1757719263394,65.76452921,240.76,240.75,0.12]
[1757719264300,69.91804308,240.76,240.75,0.12]
[1757719264900,28.94843964,240.76,240.75,0.12]
[1757719265091,3.03576281,240.76,240.75,0.78]
[1757719265285,20.03,240.85,240.75,2.44130204]
[1757719265486,33.32,240.84,240.76,0.66]
[1757719265685,13.59559401,240.83,240.76,0.66]
[1757719265998,13.59559401,240.83,240.77,1.78130204]
[1757719266301,13.59559401,240.83,240.78,0.66]
[1757719267483,0.03,240.85,240.78,0.66]
[1757719268682,0.03,240.85,240.79,26.0]
[1757719268883,0.03,240.85,240.8,0.66]
[1757719271091,0.03,240.85,240.8,0.61848038]
[1757719276006,0.03,240.85,240.81,1.66054341]
[1757719276394,0.03,240.85,240.82,0.66]
[1757719286513,0.03,240.85,240.83,1.66026771]
[1757719286832,0.03,240.85,240.84,33.28]
[1757719287007,0.03,240.85,240.84,33.98]
[1757719287515,0.03,240.85,240.84,2.36026772]
[1757719289628,0.03,240.85,240.84,35.12026772]
[1757719290311,0.03,240.85,240.84,0.2]
[1757719290831,0.03,240.85,240.84,26.2]
[1757719291019,0.03,240.85,240.73,4.36603144]
[1757719291215,0.03,240.85,240.81,1.66061235]
[1757719291418,0.03,240.85,240.75,26.12]
[1757719291613,0.03,240.85,240.79,26.0]
[1757719291812,0.03,240.85,240.79,27.66068129]
[1757719292015,0.03,240.85,240.83,26.0]
[1757719292420,0.03,240.85,240.83,26.7]
[1757719293109,0.03,240.85,240.83,26.0]
[1757719293325,0.03,240.85,240.84,0.7]
[1757719294837,0.03,240.85,240.82,0.7]
[1757719295002,0.03,240.85,240.82,26.7]
[1757719295209,0.03,240.85,240.84,26.0]
[1757719295412,0.03,240.85,240.84,26.7]
[1757719296034,0.03,240.85,240.84,26.0]
[1757719297233,0.03,240.85,240.82,0.7]
[1757719297410,0.03,240.85,240.83,0.7]
[1757719298120,0.03,240.85,240.84,0.7]
[1757719299527,0.03,240.85,240.82,33.94]
[1757719299717,0.03,240.85,240.82,33.24]
[1757719300029,0.03,240.85,240.81,59.24]
[1757719300216,0.69,240.85,240.81,26.0]
[1757719300619,0.66,240.84,240.81,26.0]
[1757719301224,0.03,240.85,240.81,26.0]
[1757719301423,0.03,240.85,240.82,0.7]
[1757719301622,0.03,240.85,240.81,26.7]
[1757719302217,0.69,240.85,240.81,26.0]
[1757719302544,0.03,240.85,240.81,26.7]
[1757719302746,0.69,240.85,240.81,26.7]
[1757719303043,0.69,240.85,240.81,26.0]
[1757719303626,3.47608957,240.82,240.8,0.12]
[1757719303931,14.25559401,240.81,240.8,0.12]
[1757719304144,17.73168358,240.81,240.8,0.12]
[1757719305652,34.25559401,240.81,240.8,0.12]
[1757719305944,37.73168358,240.81,240.8,0.12]
[1757719307737,33.59559401,240.78,240.77,0.12]
[1757719307921,37.07168358,240.78,240.77,0.12]
[1757719308234,37.76168358,240.78,240.77,0.12]
[1757719310438,70.98168358,240.78,240.77,0.12]
[1757719312331,86.469531,240.78,240.77,0.12]
[1757719312655,86.469531,240.78,240.72,0.12]
[1757719312656,33.59559401,240.73,240.72,0.12]
[1757719312844,76.79562057,240.73,240.72,0.12]
[1757719313046,63.07168358,240.71,240.7,0.12]
[1757719313249,66.099531,240.71,240.7,0.12]
[1757719313427,66.789531,240.71,240.7,0.12]
[1757719313750,70.94390763,240.71,240.7,0.12]
[1757719315239,63.31344143,240.71,240.7,0.12]
[1757719315442,96.29168358,240.71,240.7,0.12]
[1757719315636,13.59559401,240.71,240.7,0.8]
[1757719320442,13.59559401,240.71,240.7,0.12]
[1757719320635,13.59559401,240.71,240.7,0.8]
[1757719326338,0.72,240.78,240.7,0.8]
[1757719326659,13.59559401,240.78,240.7,0.8]
[1757719327547,33.59559401,240.79,240.7,0.8]
[1757719328445,34.31559401,240.79,240.7,0.8]
[1757719329636,0.03,240.78,240.7,0.8]
[1757719329849,0.75,240.78,240.7,0.8]
[1757719337064,13.59559401,240.77,240.7,0.8]
[1757719337237,14.31559401,240.77,240.7,0.8]
[1757719338564,2.2240713,240.76,240.7,0.12]
[1757719338856,13.59559401,240.74,240.7,0.12]
[1757719339062,13.59559401,240.72,240.7,0.12]
[1757719340651,14.31559401,240.72,240.7,0.12]
[1757719341062,14.31559401,240.71,240.7,0.12]
[1757719343544,13.59559401,240.71,240.7,0.12]
[1757719343747,14.31559401,240.71,240.7,0.12]
[1757719344354,16.53966531,240.71,240.7,0.12]
[1757719344547,53.83404194,240.71,240.7,0.12]
[1757719347752,56.8735019,240.71,240.7,0.12]
[1757719350880,52.71912527,240.71,240.7,0.12]
[1757719351172,69.04011192,240.71,240.7,0.12]
[1757719355052,35.90011192,240.71,240.7,0.12]
[1757719355260,69.02011192,240.71,240.7,0.12]
[1757719355982,35.90011192,240.71,240.7,0.12]
[1757719356182,69.02011192,240.71,240.7,0.12]
[1757719356760,81.48011192,240.71,240.7,0.12]
[1757719358970,81.48431527,240.71,240.7,0.12]
[1757719359571,72.05559401,240.68,240.67,0.12]
[1757719359800,110.44332862,240.68,240.67,0.12]
[1757719360100,111.11332862,240.68,240.67,0.12]
[1757719360806,115.26822308,240.68,240.67,0.12]
[1757719361091,115.26744608,240.68,240.67,0.12]
[1757719361299,115.26744608,240.68,240.65,0.12]
[1757719361300,46.05559401,240.66,240.65,0.12]
[1757719361465,82.19848032,240.66,240.65,0.12]
[1757719361666,82.86848032,240.66,240.65,0.12]
[1757719361888,51.32255162,240.66,240.65,0.12]
[1757719362089,84.42255162,240.66,240.65,0.12]
[1757719363187,46.05559401,240.66,240.65,0.8]
[1757719363407,46.69559401,240.66,240.65,0.8]
[1757719363898,13.59559401,240.66,240.65,0.8]
[1757719364066,46.69559401,240.66,240.65,0.8]
[1757719364673,13.59559401,240.66,240.65,0.8]
[1757719364979,10.41359132,240.77,240.65,0.8]
[1757719364980,13.59559401,240.69,240.65,0.8]
[1757719365184,33.1,240.7,240.65,0.8]
[1757719365567,13.59559401,240.69,240.65,0.8]
[1757719366692,33.1,240.68,240.65,0.8]
[1757719367727,13.59559401,240.67,240.66,0.72]
[1757719367874,13.59559401,240.67,240.65,0.12]
[1757719368588,13.59559401,240.67,240.66,0.72]
[1757719369090,46.67559401,240.67,240.66,0.72]
[1757719369687,46.67559401,240.67,240.65,0.12]
[1757719369868,13.59559401,240.66,240.65,0.12]
[1757719370425,13.59559401,240.66,240.65,0.84]
[1757719372194,13.59559401,240.66,240.65,0.12]
[1757719372588,13.59559401,240.71,240.65,0.84]
[1757719372901,13.59559401,240.69,240.65,0.84]
[1757719373273,13.59559401,240.69,240.65,0.12]
[1757719373484,13.59559401,240.67,240.66,0.72]
[1757719373671,13.59559401,240.67,240.65,0.12]
[1757719373885,46.67559401,240.66,240.65,0.12]
[1757719374797,46.67559401,240.66,240.65,0.77]
[1757719375400,33.08,240.68,240.65,0.77]
[1757719375708,13.59559401,240.67,240.65,0.77]
[1757719376586,13.59559401,240.67,240.66,0.65]
[1757719376781,13.59559401,240.67,240.65,0.12]
[1757719376981,13.59559401,240.67,240.65,0.77]
[1757719377473,13.59559401,240.7,240.65,0.77]
[1757719377674,14.28559401,240.7,240.65,0.77]
[1757719377992,13.59559401,240.68,240.66,0.65]
[1757719378188,13.59559401,240.66,240.65,0.12]
[1757719378807,13.59559401,240.66,240.65,0.77]
[1757719380497,0.03,240.72,240.65,0.77]
[1757719381583,13.59559401,240.7,240.65,0.77]
[1757719381785,13.59559401,240.7,240.66,0.65]
[1757719382013,13.59559401,240.7,240.67,0.65]
[1757719382304,13.59559401,240.7,240.68,0.65]
[1757719382892,13.59559401,240.7,240.69,0.65]
[1757719383090,0.03,240.72,240.69,0.65]
[1757719383286,13.59559401,240.7,240.65,0.12]
[1757719383909,13.59559401,240.7,240.66,0.65]
[1757719384404,13.59559401,240.7,240.65,0.12]
[1757719384405,13.59559401,240.7,240.67,0.65]
[1757719384612,13.59559401,240.7,240.68,0.65]
[1757719386296,13.59559401,240.7,240.69,0.65]
[1757719386607,13.59559401,240.71,240.69,0.65]
[1757719386987,13.59559401,240.71,240.7,0.65]
[1757719387310,0.03,240.72,240.7,0.65]
[1757719388084,0.03,240.72,240.71,0.65]
[1757719388486,0.03,240.72,240.68,0.65]
[1757719388697,0.03,240.72,240.67,0.12]
[1757719389008,0.03,240.72,240.68,0.65]
[1757719389900,13.59559401,240.7,240.67,0.12]
[1757719390408,0.69,240.71,240.67,0.12]
[1757719390583,13.59559401,240.69,240.67,0.12]
[1757719391003,13.59559401,240.69,240.67,0.77]
[1757719391511,13.59559401,240.7,240.67,0.77]
[1757719394215,13.59559401,240.7,240.67,0.12]
[1757719394911,14.28559401,240.7,240.67,0.12]
[1757719395110,13.59559401,240.7,240.67,0.12]
[1757719395416,0.69,240.69,240.67,0.12]
[1757719395907,13.59559401,240.7,240.67,0.12]
[1757719396090,14.28559401,240.68,240.67,0.12]
[1757719396291,13.59559401,240.68,240.67,0.12]
[1757719396905,46.59559401,240.68,240.67,0.12]
[1757719403815,50.76226608,240.68,240.67,0.12]
[1757719404408,46.59559401,240.68,240.67,0.12]
[1757719406998,0.03,240.72,240.67,0.8]
[1757719407196,13.62559401,240.72,240.67,0.8]
[1757719407399,42.42559401,240.72,240.67,0.8]
[1757719407812,0.03,240.68,240.67,0.8]
[1757719411810,0.03,240.68,240.67,0.12]
[1757719412007,0.69,240.68,240.67,0.12]
[1757719412610,14.28559401,240.68,240.67,0.12]
[1757719413724,13.62559401,240.68,240.67,0.12]
[1757719424442,17.76226608,240.68,240.67,0.12]
[1757719430823,49.58167842,240.68,240.67,0.12]
[1757719431034,50.00226608,240.68,240.67,0.12]
[1757719431234,46.52559401,240.68,240.67,0.12]
[1757719431428,50.00226608,240.68,240.67,0.12]
[1757719431647,50.66226608,240.68,240.67,0.12]
[1757719431838,53.71827134,240.68,240.67,0.12]
[1757719432033,47.18559401,240.68,240.67,0.12]
[1757719432237,53.71843563,240.68,240.67,0.12]
[1757719432434,50.66226608,240.68,240.67,0.12]
[1757719433849,13.62559401,240.68,240.67,0.12]
[1757719434152,13.62559401,240.68,240.67,0.8]
[1757719434528,0.03,240.68,240.67,0.8]
[1757719434844,0.03,240.71,240.67,0.8]
[1757719439369,0.03,240.71,240.68,0.68]
[1757719439742,0.03,240.71,240.69,0.68]
[1757719439945,0.03,240.71,240.7,0.68]
[1757719440562,0.03,240.71,240.68,0.68]
[1757719440750,13.18559401,240.74,240.69,0.68]
[1757719440950,13.86559401,240.74,240.69,0.68]
[1757719441262,0.03,240.75,240.7,0.68]
[1757719443663,0.03,240.71,240.7,0.68]
[1757719446263,0.03,240.71,240.68,2.46178517]
[1757719446461,0.03,240.71,240.68,1.78178517]
[1757719446645,0.03,240.71,240.69,0.68]
[1757719448967,0.03,240.71,240.68,1.66164711]
[1757719449155,0.03,240.71,240.67,0.8]
[1757719449340,0.03,240.71,240.68,2.34178518]
[1757719449945,0.03,240.71,240.69,0.68]
[1757719450467,0.03,240.71,240.7,0.68]
[1757719452351,0.03,240.71,240.7,2.3416471]
[1757719453575,0.03,240.71,240.7,28.3416471]
[1757719461456,0.03,240.71,240.7,28.4616471]
[1757719463957,0.03,240.71,240.7,61.2816471]
[1757719465578,0.03,240.71,240.7,61.69710202]
[1757719466167,0.03,240.71,240.7,75.29269603]
[1757719470083,0.03,240.71,240.7,16.05724111]
[1757719470283,0.03,240.71,240.7,35.2616471]
[1757719471367,0.03,240.71,240.7,61.2616471]
[1757719476986,0.03,240.71,240.7,61.2416471]
[1757719477990,0.03,240.71,240.7,60.5616471]
[1757719478191,0.03,240.71,240.7,27.7816471]
[1757719478498,0.03,240.71,240.7,34.5616471]
[1757719482305,0.69,240.71,240.7,34.5616471]
[1757719482834,0.03,240.71,240.7,34.5616471]
[1757719482978,0.03,240.71,240.7,35.2216471]
[1757719488605,0.03,240.71,240.7,48.81724111]
[1757719488914,0.03,240.71,240.7,53.59872747]
[1757719489115,0.03,240.74,240.73,39.59559401]
[1757719489310,0.03,240.74,240.73,77.15702859]
[1757719489511,0.03,240.74,240.73,45.04702859]
[1757719489720,0.03,240.74,240.73,79.46750307]
[1757719491118,0.03,240.74,240.73,99.46750307]
[1757719491327,0.03,240.74,240.73,99.05209993]
[1757719495508,0.03,240.74,240.73,100.95209993]
[1757719496234,0.03,240.74,240.73,99.05209993]
[1757719496812,0.01,240.74,240.73,99.05209993]
[1757719497609,0.03,240.75,240.74,17.96162545]
[1757719497941,0.03,240.75,240.74,19.09701134]
[1757719498927,0.03,240.75,240.74,20.75714125]
[1757719502335,0.03,240.78,240.77,20.0]
[1757719502536,0.03,240.83,240.8,59.59559401]
[1757719502710,0.03,240.83,240.8,122.5908764]
[1757719502915,0.03,240.83,240.82,33.59559401]
[1757719503226,0.42441608,241.13,240.93,26.0]
[1757719503430,0.42441608,241.13,240.93,13.59559401]
[1757719503613,0.42441608,241.13,240.97,26.0]
[1757719503812,0.42441608,241.13,240.98,32.74]
[1757719504424,0.87,240.99,240.98,32.74]
[1757719504624,0.87,240.99,240.95,3.35760782]
[1757719504835,0.2,240.99,240.98,29.46384393]
[1757719505145,0.2,240.99,240.98,62.20384393]
[1757719505436,0.87,240.99,240.98,62.20384393]
[1757719505806,0.87,240.99,240.98,36.20384393]
[1757719506010,0.87,240.99,240.98,3.46384393]
[1757719506210,0.87,240.99,240.98,36.20384393]
[1757719507012,0.87,240.99,240.98,3.46384393]
[1757719507218,0.87,240.99,240.98,36.20384393]
[1757719509428,0.87,240.99,240.98,32.74]
[1757719510726,0.87,240.99,240.98,26.0]
[1757719510929,0.87,240.99,240.98,58.72]
[1757719513930,0.87,240.99,240.98,26.0]
[1757719514144,0.87,240.99,240.98,58.72]
[1757719514443,0.87,240.99,240.98,26.0]
[1757719514650,0.87,240.99,240.94,26.0]